bitfinex-derivatives/quotes_BNBF0:USTF0_20250715
["timestamp","ask_amount","ask_price","bid_price","bid_amount"]
[1752548133346,0.97568461,683.69,682.69,0.9826514]
[1752548133548,0.97568461,683.68,682.7,0.9826514]
[1752548133748,0.97568461,683.63,682.73,0.9826514]
[1752548134250,0.97568461,683.64,682.72,0.9826514]
[1752548134447,0.97568461,683.69,682.69,0.9826514]
[1752548134848,0.97568461,683.71,682.67,0.9826514]
[1752548135052,0.97568461,683.69,682.66,0.9826514]
[1752548135352,0.97568461,683.71,682.65,0.9826514]
[1752548136247,0.97568461,683.71,682.64,0.9826514]
[1752548136452,0.97568461,683.72,682.64,0.9826514]
[1752548136852,0.97568461,683.67,682.59,0.9826514]
[1752548137152,0.97568461,683.67,682.53,0.9826514]
[1752548137450,0.97568461,683.67,682.51,0.9826514]
[1752548137647,0.97568461,683.67,682.33,1.3102018]
[1752548137648,0.97568461,683.67,682.52,0.9826514]
[1752548138152,0.97568461,683.65,682.47,0.9826514]
[1752548138452,0.97568461,683.64,682.47,0.9826514]
[1752548139253,0.97568461,683.65,682.46,0.9826514]
[1752548139550,0.97568461,683.65,682.47,0.9826514]
[1752548140251,0.97568461,683.86,682.67,0.9826514]
[1752548140454,0.97568461,683.93,682.75,0.9826514]
[1752548141254,0.97568461,683.92,682.76,0.9826514]
[1752548141554,0.97568461,683.91,682.77,0.9826514]
[1752548142452,0.97568461,683.92,682.76,0.9826514]
[1752548143260,0.97568461,683.91,682.75,0.9826514]
[1752548144256,0.97568461,683.9,682.76,0.9826514]
[1752548145358,0.97568461,683.9,682.6,1.3102018]
[1752548145359,0.97568461,683.91,682.75,0.9826514]
[1752548145557,0.97568461,683.9,682.76,0.9826514]
[1752548146958,0.97568461,683.89,682.77,0.9826514]
[1752548147962,0.97568461,683.91,682.75,0.9826514]
[1752548148164,0.97568461,683.91,682.76,0.9826514]
[1752548148364,0.97568461,683.9,682.76,0.9826514]
[1752548149463,0.97568461,683.89,682.77,0.9826514]
[1752548149763,0.97568461,683.99,682.71,0.9826514]
[1752548150358,0.97568461,683.98,682.72,0.9826514]
[1752548151962,0.97568461,683.98,681.33,3.2598397]
[1752548151963,0.97568461,683.95,682.74,0.9826514]
[1752548152363,0.97568461,683.92,682.76,0.9826514]
[1752548152760,0.97568461,683.92,682.55,1.3102018]
[1752548152761,0.97568461,683.79,682.84,0.9826514]
[1752548153061,0.97568461,683.77,682.85,0.9826514]
[1752548153262,0.97568461,683.77,682.86,0.9826514]
[1752548153463,0.97568461,683.77,682.85,0.9826514]
[1752548153762,0.97568461,683.78,682.85,0.9826514]
[1752548153961,0.97568461,683.88,682.95,0.9826514]
[1752548154163,0.97568461,683.89,682.96,0.9826514]
[1752548154461,0.97568461,683.88,682.96,0.9826514]
[1752548154661,0.97568461,683.89,682.96,0.9826514]
[1752548154865,0.97568461,683.9,682.95,0.9826514]
[1752548155065,0.97568461,683.89,682.96,0.9826514]
[1752548155463,0.97568461,683.89,682.17,3.2598397]
[1752548155464,0.97568461,683.91,682.95,0.9826514]
[1752548155666,0.97568461,683.9,682.95,0.9826514]
[1752548156168,0.97568461,683.69,682.74,0.9826514]
[1752548156372,0.97568461,683.77,682.83,0.9826514]
[1752548156668,0.97568461,683.67,682.71,0.9826514]
[1752548156872,0.97568461,683.73,682.77,0.9826514]
[1752548157573,0.97568461,683.72,682.78,0.9826514]
[1752548157772,0.97568461,683.75,682.78,0.9826514]
[1752548157973,0.97568461,683.75,682.76,0.9826514]
[1752548158373,0.97568461,683.75,682.77,0.9826514]
[1752548158574,0.97568461,683.75,682.76,0.9826514]
[1752548158870,0.97568461,683.73,682.77,0.9826514]
[1752548159174,0.97568461,683.73,682.78,0.9826514]
[1752548161174,0.97568461,683.75,682.76,0.9826514]
[1752548161676,0.97568461,683.75,682.77,0.9826514]
[1752548161879,0.97568461,683.69,682.71,0.9826514]
[1752548162079,0.97568461,683.73,682.69,0.9826514]
[1752548162375,0.25448456,684.05,682.69,0.9826514]
[1752548162376,0.97568461,683.72,682.69,0.9826514]
[1752548163176,0.97568461,683.72,682.7,0.9826514]
[1752548165177,0.97568461,683.71,682.7,0.9826514]
[1752548165882,0.97568461,683.7,682.71,0.9826514]
[1752548166082,0.97568461,683.68,682.72,0.9826514]
[1752548166582,0.97568461,683.61,682.76,0.9826514]
[1752548166782,0.97568461,683.61,682.77,0.9826514]
[1752548166981,0.97568461,683.6,682.76,0.9826514]
[1752548167178,0.97568461,683.59,682.76,0.9826514]
[1752548167378,0.97568461,683.59,682.64,1.3102018]
[1752548167379,0.97568461,683.59,682.75,0.9826514]
[1752548167684,0.97568461,683.58,682.76,0.9826514]
[1752548169884,0.97568461,683.58,682.77,0.9826514]
[1752548170385,0.97568461,683.57,682.77,0.9826514]
[1752548170585,0.97568461,683.58,682.77,0.9826514]
[1752548170983,0.97568461,683.57,682.77,0.9826514]
[1752548171182,0.97568461,683.56,682.77,0.9826514]
[1752548171482,0.97568461,683.57,682.77,0.9826514]
[1752548171682,0.97568461,683.55,682.77,0.9826514]
[1752548172187,0.97568461,683.54,682.77,0.9826514]
[1752548172385,0.97568461,683.55,682.77,0.9826514]
[1752548173289,0.97568461,683.54,682.78,0.9826514]
[1752548174887,0.97568461,683.53,682.79,0.9826514]
[1752548175690,0.97568461,683.52,682.79,0.9826514]
[1752548176094,0.97568461,683.51,682.78,0.9826514]
[1752548176290,0.97568461,683.5,682.79,0.9826514]
[1752548177196,0.97568461,683.49,682.79,0.9826514]
[1752548178192,0.97568461,683.48,682.81,0.9826514]
[1752548179295,0.97568461,683.47,682.81,0.9826514]
[1752548180093,0.97568461,683.51,682.79,0.9826514]
[1752548181195,0.97568461,683.5,682.79,0.9826514]
[1752548182396,0.97568461,683.5,682.8,0.9826514]
[1752548183201,0.97568461,683.49,682.8,0.9826514]
[1752548184600,0.97568461,683.51,682.79,0.9826514]
[1752548184800,0.97568461,683.52,682.78,0.9826514]
[1752548185304,0.97568461,683.55,682.77,0.9826514]
[1752548186602,0.97568461,683.54,682.77,0.9826514]
[1752548187605,0.97568461,683.56,682.79,0.9826514]
[1752548188104,0.97568461,683.57,682.78,0.9826514]
[1752548188504,0.97568461,683.62,682.83,0.9826514]
[1752548189503,0.25448456,684.05,682.84,0.9826514]
[1752548189504,0.97568461,683.61,682.84,0.9826514]
[1752548189706,0.97568461,683.57,682.86,0.9826514]
[1752548189903,0.25448456,684.05,682.87,0.9826514]
[1752548189904,0.97568461,683.56,682.87,0.9826514]
[1752548190605,0.97568461,683.51,682.9,0.9826514]
[1752548190804,0.97568461,683.57,682.86,0.9826514]
[1752548191706,0.97568461,683.58,682.85,0.9826514]
[1752548192009,0.97568461,683.56,682.87,0.9826514]
[1752548192205,0.97568461,683.55,682.87,0.9826514]
[1752548192506,0.97568461,683.56,682.87,0.9826514]
[1752548193709,0.97568461,683.55,682.87,0.9826514]
[1752548194410,0.25448456,684.05,682.01,3.2598397]
[1752548194411,0.97568461,683.52,682.89,0.9826514]
[1752548195208,0.97568461,683.51,682.9,0.9826514]
[1752548196008,0.97568461,683.57,682.86,0.9826514]
[1752548197211,0.97568461,683.56,682.86,0.9826514]
[1752548197613,0.97568461,683.57,682.86,0.9826514]
[1752548198108,0.97568461,683.56,682.86,0.9826514]
[1752548198312,0.97568461,683.56,682.87,0.9826514]
[1752548199313,0.97568461,683.55,682.88,0.9826514]
[1752548199513,0.97568461,683.53,682.88,0.9826514]
[1752548199714,0.97568461,683.51,682.9,0.9826514]
[1752548200509,0.97568461,683.25,682.63,0.9826514]
[1752548200810,0.97568461,683.22,682.55,0.9826514]
[1752548201009,0.97568461,683.19,682.52,0.9826514]
[1752548201212,0.97568461,683.21,682.5,0.9826514]
[1752548202112,0.97568461,683.21,682.49,0.9826514]
[1752548202312,0.97568461,683.23,682.51,0.9826514]
[1752548203015,0.97568461,683.25,682.53,0.9826514]
[1752548203212,0.97568461,683.27,682.53,0.9826514]
[1752548203512,0.97568461,683.33,682.59,0.9826514]
[1752548204116,0.97568461,683.34,682.59,0.9826514]
[1752548204813,0.97568461,683.36,682.57,0.9826514]
[1752548205617,0.97568461,683.36,682.56,0.9826514]
[1752548207220,0.97568461,683.37,682.55,0.9826514]
[1752548207918,0.97568461,683.36,682.55,0.9826514]
[1752548208320,0.97568461,683.36,682.54,0.9826514]
[1752548208521,0.97568461,683.37,682.54,0.9826514]
[1752548210020,0.97568461,683.38,682.55,0.9826514]
[1752548210222,0.97568461,683.39,682.55,0.9826514]
[1752548210421,0.97568461,683.37,682.56,0.9826514]
[1752548210722,0.97568461,683.39,682.55,0.9826514]
[1752548210922,0.97568461,683.4,682.54,0.9826514]
[1752548212726,0.97568461,683.36,682.56,0.9826514]
[1752548212919,0.97568461,683.35,682.57,0.9826514]
[1752548213124,0.97568461,683.35,682.56,0.9826514]
[1752548213325,0.97568461,683.35,682.57,0.9826514]
[1752548213723,0.97568461,683.3,682.51,0.9826514]
[1752548214123,0.97568461,683.29,682.51,0.9826514]
[1752548215327,0.97568461,683.19,682.42,0.9826514]
[1752548216328,0.97568461,683.2,682.41,0.9826514]
[1752548217135,0.97568461,683.21,682.41,0.9826514]
[1752548218136,0.97568461,683.22,682.4,0.9826514]
[1752548219331,0.97568461,683.24,682.39,0.9826514]
[1752548219532,0.97568461,683.22,682.39,0.9826514]
[1752548219732,0.97568461,683.21,682.39,0.9826514]
[1752548220035,0.97568461,683.22,682.39,0.9826514]
[1752548220530,0.97568461,683.21,682.38,0.9826514]
[1752548220736,0.97568461,683.18,682.34,0.9826514]
[1752548221032,0.97568461,683.16,682.33,0.9826514]
[1752548221836,0.97568461,683.17,682.32,0.9826514]
[1752548222038,0.97568461,683.12,682.27,0.9826514]
[1752548222234,0.97568461,683.13,682.26,0.9826514]
[1752548222834,0.97568461,683.1,682.23,0.9826514]
[1752548223038,0.97568461,683.09,682.23,0.9826514]
[1752548223338,0.97568461,683.1,682.22,0.9826514]
[1752548224336,0.97568461,683.12,682.21,0.9826514]
[1752548224836,0.97568461,683.11,682.21,0.9826514]
[1752548225237,0.97568461,683.13,682.2,0.9826514]
[1752548225635,0.97568461,683.12,682.2,0.9826514]
[1752548225941,0.97568461,683.11,682.21,0.9826514]
[1752548226336,0.97568461,683.13,682.2,0.9826514]
[1752548227338,0.97568461,683.14,682.19,0.9826514]
[1752548228242,0.97568461,683.15,682.18,0.9826514]
[1752548229342,0.97568461,683.22,682.25,0.9826514]
[1752548230140,0.97568461,683.23,682.25,0.9826514]
[1752548230343,0.97568461,683.24,682.26,0.9826514]
[1752548230743,0.25476401,683.31,682.26,0.9826514]
[1752548230744,0.97568461,683.23,682.26,0.9826514]
[1752548231945,0.97568461,683.26,682.29,0.9826514]
[1752548232341,0.25476401,683.31,682.28,0.9826514]
[1752548232342,0.97568461,683.28,682.28,0.9826514]
[1752548232843,0.97568461,683.28,682.29,0.9826514]
[1752548236250,0.97568461,683.27,682.29,0.9826514]
[1752548236951,0.97568461,683.32,682.29,0.9826514]
[1752548237152,0.97568461,683.36,682.33,0.9826514]
[1752548237752,0.97568461,683.37,682.32,0.9826514]
[1752548238248,0.97568461,683.37,682.33,0.9826514]
[1752548239055,0.97568461,683.36,682.33,0.9826514]
[1752548240250,0.97568461,683.37,682.35,0.9826514]
[1752548240955,0.25474816,683.42,682.41,0.9826514]
[1752548241256,1.23043277,683.42,682.41,0.9826514]
[1752548241455,0.25474816,683.42,682.45,0.9826514]
[1752548241955,0.25474816,683.42,682.44,0.9826514]
[1752548242451,0.25474816,683.42,682.45,0.9826514]
[1752548242651,0.97568461,683.47,682.46,0.9826514]
[1752548242851,0.97568461,683.48,682.45,0.9826514]
[1752548243255,0.97568461,683.48,682.46,0.9826514]
[1752548243456,0.97568461,683.47,682.46,0.9826514]
[1752548243656,0.97568461,683.48,682.44,0.9826514]
[1752548243856,0.97568461,683.49,682.44,0.9826514]
[1752548244652,0.97568461,683.47,682.45,0.9826514]
[1752548244951,0.97568461,683.51,682.5,0.9826514]
[1752548245455,0.97568461,683.48,682.51,0.9826514]
[1752548245656,0.97568461,683.46,682.49,0.9826514]
[1752548246356,0.97568461,683.43,682.47,0.9826514]
[1752548246957,0.97568461,683.4,682.49,0.9826514]
[1752548247356,0.97568461,683.39,682.5,0.9826514]
[1752548249358,0.97568461,683.38,682.51,0.9826514]
[1752548250261,0.97568461,683.37,682.51,0.9826514]
[1752548250959,0.97568461,683.39,682.52,0.9826514]
[1752548251160,0.97568461,683.38,682.53,0.9826514]
[1752548251660,0.97568461,683.39,682.52,0.9826514]
[1752548251860,0.97568461,683.38,682.52,0.9826514]
[1752548252157,0.97568461,683.36,682.51,0.9826514]
[1752548252757,0.97568461,683.31,682.47,0.9826514]
[1752548253061,0.97568461,683.32,682.46,0.9826514]
[1752548253356,0.97568461,683.31,682.47,0.9826514]
[1752548254162,0.97568461,683.3,682.47,0.9826514]
[1752548254358,0.97568461,683.3,682.48,0.9826514]
[1752548254962,0.97568461,683.31,682.47,0.9826514]
[1752548255159,0.97568461,683.3,682.48,0.9826514]
[1752548255365,0.97568461,683.25,682.43,0.9826514]
[1752548255860,0.97568461,683.28,682.42,0.9826514]
[1752548256265,0.97568461,683.26,682.43,0.9826514]
[1752548257163,0.97568461,683.26,682.44,0.9826514]
[1752548257362,0.97568461,683.25,682.44,0.9826514]
[1752548258268,0.97568461,683.24,682.45,0.9826514]
[1752548258769,0.97568461,683.31,682.53,0.9826514]
[1752548259064,0.97568461,683.3,682.54,0.9826514]
[1752548260170,0.97568461,683.28,682.55,0.9826514]
[1752548261465,0.97568461,683.28,682.56,0.9826514]
[1752548261670,0.97568461,683.28,682.41,1.3102018]
[1752548261671,0.97568461,683.29,682.55,0.9826514]
[1752548262069,1.3009128,683.44,682.55,0.9826514]
[1752548262070,0.97568461,683.3,682.55,0.9826514]
[1752548262366,0.97568461,683.29,682.55,0.9826514]
[1752548263171,0.97568461,683.34,682.61,0.9826514]
[1752548263468,0.97568461,683.34,682.6,0.9826514]
[1752548263870,0.97568461,683.37,682.63,0.9826514]
[1752548265266,0.97568461,683.38,682.63,0.9826514]
[1752548265668,0.97568461,683.36,682.64,0.9826514]
[1752548266267,0.97568461,683.35,682.64,0.9826514]
[1752548266471,0.97568461,683.32,682.61,0.9826514]
[1752548268471,0.97568461,683.32,682.6,0.9826514]
[1752548270173,0.97568461,683.3,682.58,0.9826514]
[1752548271473,0.97568461,683.28,682.59,0.9826514]
[1752548274074,0.97568461,683.27,682.6,0.9826514]
[1752548274476,0.97568461,683.31,682.57,0.9826514]
[1752548277172,0.97568461,683.32,682.57,0.9826514]
[1752548278479,0.97568461,683.31,682.57,0.9826514]
[1752548281980,0.97568461,683.33,682.56,0.9826514]
[1752548282276,0.97568461,683.27,682.52,0.9826514]
[1752548284282,0.97568461,683.26,682.53,0.9826514]
[1752548284476,0.97568461,683.23,682.53,0.9826514]
[1752548285282,0.97568461,683.23,682.54,0.9826514]
[1752548286280,0.97568461,683.21,682.54,0.9826514]
[1752548286481,0.97568461,683.18,682.5,0.9826514]
[1752548286986,0.97568461,683.17,682.51,0.9826514]
[1752548287187,0.97568461,683.17,682.5,0.9826514]
[1752548287386,0.97568461,683.17,682.51,0.9826514]
[1752548287882,0.97568461,683.19,682.49,0.9826514]
[1752548288290,0.97568461,683.18,682.5,0.9826514]
[1752548289193,0.97568461,683.18,682.51,0.9826514]
[1752548289393,0.97568461,683.18,682.5,0.9826514]
[1752548290391,0.97568461,683.18,682.51,0.9826514]
[1752548291296,0.97568461,683.17,682.51,0.9826514]
[1752548291508,0.97568461,683.16,682.52,0.9826514]
[1752548292296,0.97568461,683.15,682.53,0.9826514]
[1752548292796,0.97568461,683.11,682.49,0.9826514]
[1752548297094,0.97568461,683.1,682.5,0.9826514]
[1752548297289,0.97568461,683.1,682.49,0.9826514]
[1752548297695,0.97568461,683.08,682.51,0.9826514]
[1752548299300,0.97568461,683.07,682.51,0.9826514]
[1752548301296,0.97568461,683.05,682.53,0.9826514]
[1752548302796,0.97568461,683.1,682.49,0.9826514]
[1752548304399,1.3009128,683.25,682.49,0.9826514]
[1752548304400,0.97568461,683.11,682.49,0.9826514]
[1752548305501,0.97568461,683.1,682.48,0.9826514]
[1752548306200,0.97568461,683.11,682.48,0.9826514]
[1752548306898,0.97568461,683.07,682.45,0.9826514]
[1752548307202,0.97568461,683.14,682.39,0.9826514]
[1752548307402,0.25469502,683.52,682.39,0.9826514]
[1752548307403,0.97568461,683.15,682.39,0.9826514]
[1752548308504,0.97568461,683.15,682.38,0.9826514]
[1752548309299,0.97568461,683.16,682.39,0.9826514]
[1752548309797,0.97568461,683.15,682.39,0.9826514]
[1752548309998,0.97568461,683.15,682.4,0.9826514]
[1752548311306,0.97568461,683.16,682.4,0.9826514]
[1752548311503,0.97568461,683.16,682.39,0.9826514]
[1752548311803,0.97568461,683.15,682.4,0.9826514]
[1752548312405,0.97568461,683.18,682.42,0.9826514]
[1752548312704,0.97568461,683.19,682.43,0.9826514]
[1752548313303,0.97568461,683.2,682.43,0.9826514]
[1752548314602,0.97568461,683.17,682.4,0.9826514]
[1752548315104,0.97568461,683.1,682.45,0.9826514]
[1752548315506,0.97568461,683.11,682.47,0.9826514]
[1752548316106,0.97568461,683.12,682.47,0.9826514]
[1752548316406,0.97568461,683.12,682.48,0.9826514]
[1752548316607,0.97568461,683.2,682.56,0.9826514]
[1752548317407,0.97568461,683.2,682.55,0.9826514]
[1752548319002,0.97568461,683.19,682.55,0.9826514]
[1752548319403,0.97568461,683.17,682.55,0.9826514]
[1752548320207,0.97568461,683.17,682.56,0.9826514]
[1752548322508,0.97568461,683.18,682.57,0.9826514]
[1752548322709,0.97568461,683.23,682.61,0.9826514]
[1752548323305,0.97568461,683.23,682.62,0.9826514]
[1752548323505,0.97568461,683.23,682.61,0.9826514]
[1752548324207,0.97568461,683.25,682.6,0.9826514]
[1752548326312,0.97568461,683.24,682.6,0.9826514]
[1752548326812,0.98083231,683.24,682.6,0.98531389]
[1752548327008,0.98083231,683.21,682.62,0.98531389]
[1752548328214,0.98083231,683.2,682.62,0.98531389]
[1752548328909,0.98083231,683.19,682.63,0.98531389]
[1752548329611,0.98083231,683.28,682.57,0.98531389]
[1752548330715,0.98083231,683.32,682.61,0.98531389]
[1752548330911,0.98083231,683.35,682.64,0.98531389]
[1752548331618,0.98083231,683.35,682.63,0.98531389]
[1752548332216,0.98083231,683.34,682.62,0.98531389]
[1752548332617,0.98083231,683.3,682.58,0.98531389]
[1752548333117,0.98083231,683.28,682.56,0.98531389]
[1752548333418,0.98083231,683.3,682.51,0.98531389]
[1752548334115,0.98083231,683.28,682.5,0.98531389]
[1752548334520,0.98083231,683.27,682.49,0.98531389]
[1752548334919,0.98083231,683.27,682.48,0.98531389]
[1752548335928,0.98083231,683.23,682.51,0.98531389]
[1752548336120,0.25469502,683.52,681.44,3.2598397]
[1752548336121,0.98083231,683.14,682.57,0.98531389]
[1752548336522,0.98083231,683.15,682.57,0.98531389]
[1752548336717,0.98083231,683.08,682.5,0.98531389]
[1752548337221,0.98083231,683.07,682.5,0.98531389]
[1752548338523,0.98096625,683.07,682.49,0.98574615]
[1752548339018,0.25469502,683.52,682.47,0.98574615]
[1752548339019,0.98096625,683.05,682.47,0.98574615]
[1752548340017,0.98096625,683.1,682.52,0.98574615]
[1752548341823,0.98096625,683.09,682.52,0.98574615]
[1752548342024,0.98096625,683.11,682.52,0.98574615]
[1752548342223,0.98096625,683.1,682.52,0.98574615]
[1752548342524,0.98096625,683.11,682.52,0.98574615]
[1752548343519,0.98096625,683.11,682.51,0.98574615]
[1752548343820,0.98096625,683.11,682.52,0.98574615]
[1752548344020,0.98096625,683.11,682.51,0.98574615]
[1752548344225,0.98096625,683.18,682.47,0.98574615]
[1752548348533,0.98096625,683.19,682.47,0.98574615]
[1752548349229,0.98096625,683.18,682.47,0.98574615]
[1752548353437,1.3009128,683.36,682.47,0.98574615]
[1752548353438,0.98096625,683.17,682.47,0.98574615]
[1752548354138,0.98096625,683.12,682.51,0.98574615]
[1752548354935,0.98096625,683.13,682.53,0.98574615]
[1752548355139,0.98096625,683.14,682.52,0.98574615]
[1752548355435,0.98096625,683.14,682.53,0.98574615]
[1752548356337,0.98096625,683.12,682.51,0.98574615]
[1752548358541,0.98096625,683.11,682.52,0.98574615]
[1752548358741,0.98096625,683.12,682.51,0.98574615]
[1752548361243,0.98096625,683.12,682.52,0.98574615]
[1752548361441,0.98096625,683.12,682.51,0.98574615]
[1752548364546,0.98096625,683.14,682.5,0.98574615]
[1752548364844,0.98096625,683.13,682.52,0.98574615]
[1752548366248,0.25469502,683.52,682.36,1.3102018]
[1752548366249,0.98096625,683.14,682.51,0.98574615]
[1752548367747,0.98096625,683.17,682.55,0.98574615]
[1752548368151,0.98096625,683.24,682.62,0.98574615]
[1752548369351,0.98096625,683.27,682.65,0.98574615]
[1752548369751,0.98096625,683.26,682.65,0.98574615]
[1752548370852,0.98096625,683.3,682.69,0.98574615]
[1752548371054,0.98096625,683.31,682.7,0.98574615]
[1752548371254,0.98096625,683.31,682.69,0.98574615]
[1752548374253,0.98096625,683.32,682.68,0.98574615]
[1752548374461,0.98096625,683.31,682.69,0.98574615]
[1752548376062,0.98096625,683.29,682.7,0.98574615]
[1752548376458,0.98096625,683.31,682.69,0.98574615]
[1752548377260,0.98096625,683.31,682.68,0.98574615]
[1752548378562,0.98096625,683.32,682.68,0.98574615]
[1752548378763,0.98096625,683.3,682.69,0.98574615]
[1752548379561,0.98096625,683.33,682.67,0.98574615]
[1752548379764,0.98096625,683.34,682.67,0.98574615]
[1752548380260,0.98096625,683.34,682.66,0.98574615]
[1752548380761,1.3009128,683.49,682.51,1.3102018]
[1752548380965,0.98141332,683.34,682.66,0.98483535]
[1752548385262,0.98141332,683.35,682.66,0.98483535]
[1752548386265,0.98141332,683.34,682.66,0.98483535]
[1752548386561,0.98141332,683.34,682.65,0.98483535]
[1752548386964,0.98141332,683.32,682.62,0.98483535]
[1752548387365,0.98141332,683.35,682.59,0.98483535]
[1752548388670,0.98141332,683.4,682.57,0.98483535]
[1752548389479,0.98141332,683.39,682.57,0.98483535]
[1752548390272,0.98141332,683.4,682.57,0.98483535]
[1752548391171,0.98141332,683.39,682.57,0.98483535]
[1752548391374,0.98141332,683.37,682.55,0.98483535]
[1752548392070,0.98141332,683.4,682.52,0.98483535]
[1752548392370,0.98141332,683.4,682.53,0.98483535]
[1752548392973,0.98141332,683.4,682.31,1.3102018]
[1752548392974,0.98141332,683.4,682.52,0.98483535]
[1752548395077,0.98141332,683.4,682.53,0.98483535]
[1752548395276,0.98141332,683.4,682.52,0.98483535]
[1752548396678,0.98141332,683.4,682.53,0.98483535]
[1752548397376,0.98141332,683.39,682.54,0.98483535]
[1752548398577,0.98141332,683.36,682.55,0.98483535]
[1752548399477,0.98141332,683.36,682.56,0.98483535]
[1752548400079,0.98141332,683.36,682.37,1.3102018]
[1752548400080,0.98141332,683.36,682.55,0.98483535]
[1752548400981,0.98141332,683.39,682.53,0.98483535]
[1752548401177,0.98141332,683.37,682.53,0.98483535]
[1752548401381,0.98141332,683.27,682.43,0.98483535]
[1752548402076,0.98141332,683.21,682.41,0.98483535]
[1752548402676,0.98141332,683.2,682.42,0.98483535]
[1752548402881,0.98141332,683.2,682.43,0.98483535]
[1752548404584,0.98141332,683.19,682.42,0.98483535]
[1752548405279,0.98141332,683.19,682.43,0.98483535]
[1752548405680,0.98141332,683.11,682.49,0.98483535]
[1752548405885,0.98141332,683.1,682.49,0.98483535]
[1752548406085,0.98141332,683.12,682.51,0.98483535]
[1752548407687,0.98141332,683.14,682.53,0.98483535]
[1752548408082,0.98141332,683.13,682.53,0.98483535]
[1752548408586,0.98141332,683.13,682.54,0.98483535]
[1752548409587,0.98141332,683.12,682.54,0.98483535]
[1752548410285,0.98141332,683.12,682.55,0.98483535]
[1752548410488,0.98141332,683.26,682.56,0.98483535]
[1752548410690,0.98141332,683.31,682.61,0.98483535]
[1752548411586,0.98141332,683.3,682.6,0.98483535]
[1752548411783,0.98141332,683.31,682.6,0.98483535]
[1752548411990,0.98141332,683.29,682.58,0.98483535]
[1752548412586,0.98141332,683.29,682.59,0.98483535]
[1752548413189,0.98141332,683.3,682.58,0.98483535]
[1752548415296,0.98141332,683.34,682.55,0.98483535]
[1752548416189,0.98141332,683.35,682.55,0.98483535]
[1752548416394,0.98141332,683.34,682.55,0.98483535]
[1752548416989,0.98141332,683.35,682.55,0.98483535]
[1752548417293,0.98141332,683.34,682.55,0.98483535]
[1752548417891,0.98141332,683.33,682.56,0.98483535]
[1752548418090,0.98141332,683.34,682.56,0.98483535]
[1752548418294,0.98141332,683.32,682.57,0.98483535]
[1752548420095,0.98141332,683.32,682.56,0.98483535]
[1752548420390,0.98141332,683.32,682.57,0.98483535]
[1752548420791,0.98141332,683.33,682.56,0.98483535]
[1752548421292,0.98141332,683.32,682.57,0.98483535]
[1752548421495,0.98141332,683.32,682.56,0.98483535]
[1752548421793,0.98141332,683.3,682.55,0.98483535]
[1752548421992,0.98141332,683.24,682.59,0.98483535]
[1752548422495,0.98141332,683.21,682.57,0.98483535]
[1752548422890,0.98141332,683.2,682.57,0.98483535]
[1752548423096,0.98141332,683.21,682.57,0.98483535]
[1752548423397,0.98141332,683.2,682.58,0.98483535]
[1752548423592,0.98141332,683.18,682.56,0.98483535]
[1752548424294,0.98141332,683.18,682.57,0.98483535]
[1752548424694,0.98141332,683.19,682.58,0.98483535]
[1752548424893,0.98141332,683.18,682.58,0.98483535]
[1752548425296,0.98141332,683.17,682.61,0.98483535]
[1752548425502,0.98141332,683.24,682.67,0.98483535]
[1752548425798,0.98141332,683.25,682.68,0.98483535]
[1752548427100,0.98141332,683.24,682.68,0.98483535]
[1752548427898,1.9513692,683.51,681.59,4.5637755]
[1752548427899,0.98141332,683.28,682.66,0.98483535]
[1752548428099,0.98141332,683.27,682.66,0.98483535]
[1752548428402,0.98141332,683.31,682.6,0.98483535]
[1752548430907,0.98141332,683.3,682.59,0.98483535]
[1752548431302,0.98141332,683.29,682.58,0.98483535]
[1752548431607,0.98141332,683.28,682.58,0.98483535]
[1752548431906,0.98141332,683.28,682.57,0.98483535]
[1752548433403,0.98141332,683.27,682.57,0.98483535]
[1752548434108,0.98141332,683.17,682.64,0.98483535]
[1752548434309,0.98141332,683.26,682.58,0.98483535]
[1752548435009,0.98141332,683.22,682.61,0.98483535]
[1752548435304,0.98141332,683.23,682.6,0.98483535]
[1752548435506,0.98141332,683.23,682.59,0.98483535]
[1752548435709,0.98141332,683.21,682.6,0.98483535]
[1752548435909,0.98141332,683.18,682.61,0.98483535]
[1752548436109,0.98141332,683.14,682.63,0.98483535]
[1752548436410,0.98141332,683.15,682.62,0.98483535]
[1752548436609,0.98141332,683.12,682.59,0.98483535]
[1752548436912,0.25469502,683.52,682.59,0.98483535]
[1752548436913,0.98141332,683.11,682.59,0.98483535]
[1752548437110,0.98141332,683.12,682.59,0.98483535]
[1752548437310,0.98141332,683.13,682.53,0.98483535]
[1752548437514,0.98141332,683.1,682.5,0.98483535]
[1752548438014,0.98141332,683.11,682.49,0.98483535]
[1752548438314,0.98141332,683.1,682.48,0.98483535]
[1752548438514,0.98141332,683.08,682.47,0.98483535]
[1752548438710,0.98141332,683.13,682.44,0.98483535]
[1752548439111,0.98141332,683.02,682.51,0.98483535]
[1752548439415,0.98141332,683.03,682.5,0.98483535]
[1752548439616,0.98141332,683.06,682.48,0.98483535]
[1752548440214,0.98141332,683.06,682.45,0.98483535]
[1752548441018,0.98141332,683.06,682.46,0.98483535]
[1752548441214,0.98141332,683.06,682.45,0.98483535]
[1752548441616,0.98141332,683.08,682.44,0.98483535]
[1752548441816,0.98141332,683.13,682.41,0.98483535]
[1752548442318,0.98141332,683.15,682.4,0.98483535]
[1752548442519,0.98141332,683.19,682.45,0.98483535]